[Event "Titled Tuesday Blitz May 16 Late 2023"]
[White "Mahdavi, Reza"]
[Black "Paravyan, David"]
[WhiteFideId "12595926"]
[BlackFideId "4194985"]
[WhiteElo "2352"]
[BlackElo "2563"]
[Result "1-0"]
[Round "09"]
[TimeControl "180+2"]
[Date "2023.05.16"]
[WhiteClock "0:00:05"]
[BlackClock "0:00:00"]

1. e4 {[%clk 0:03:00]}  e5 {[%clk 0:03:00]} 2. Nf3 {[%clk 0:03:00]}  Nf6 {[%clk 0:03:01]} 3. Nc3 {[%clk 0:03:01]}  Nc6 {[%clk 0:03:01]} 4. d4 {[%clk 0:03:01]}  exd4 {[%clk 0:03:02]} 5. Nxd4 {[%clk 0:03:02]}  Bb4 {[%clk 0:03:02]} 6. Nxc6 {[%clk 0:03:03]}  bxc6 {[%clk 0:03:03]} 7. Bd3 {[%clk 0:03:03]}  O-O {[%clk 0:03:04]} 8. Bd2 {[%clk 0:03:04]}  d5 {[%clk 0:03:04]} 9. O-O {[%clk 0:03:04]}  Rb8 {[%clk 0:03:03]} 10. Re1 {[%clk 0:03:05]}  Bg4 {[%clk 0:03:03]} 11. Qc1 {[%clk 0:02:52]}  Re8 {[%clk 0:03:03]} 12. exd5 {[%clk 0:02:53]}  cxd5 {[%clk 0:03:01]} 13. Rb1 {[%clk 0:02:45]}  Qd7 {[%clk 0:02:50]} 14. a3 {[%clk 0:02:43]}  Bd6 {[%clk 0:02:49]} 15. Bg5 {[%clk 0:02:41]}  Be5 {[%clk 0:02:42]} 16. Qd2 {[%clk 0:02:27]}  c6 {[%clk 0:02:27]} 17. Na4 {[%clk 0:02:21]}  Qd6 {[%clk 0:02:19]} 18. h3 {[%clk 0:02:18]}  Bh5 {[%clk 0:02:18]} 19. b4 {[%clk 0:02:09]}  h6 {[%clk 0:02:13]} 20. Rxe5 {[%clk 0:02:08]}  Rxe5 {[%clk 0:01:58]} 21. Bf4 {[%clk 0:02:09]}  Rbe8 {[%clk 0:01:57]} 22. Nc5 {[%clk 0:02:05]}  Nd7 {[%clk 0:01:50]} 23. Nxd7 {[%clk 0:02:01]}  Qxd7 {[%clk 0:01:50]} 24. Bxe5 {[%clk 0:02:01]}  Rxe5 {[%clk 0:01:51]} 25. Qc3 {[%clk 0:01:55]}  Qe6 {[%clk 0:01:35]} 26. Qd4 {[%clk 0:01:52]}  Qe7 {[%clk 0:01:06]} 27. Kh2 {[%clk 0:01:29]}  Bg6 {[%clk 0:01:05]} 28. f4 {[%clk 0:01:28]}  Re3 {[%clk 0:00:46]} 29. f5 {[%clk 0:01:25]}  Bh5 {[%clk 0:00:42]} 30. Qf4 {[%clk 0:01:09]}  f6 {[%clk 0:00:35]} 31. a4 {[%clk 0:00:46]}  Be2 {[%clk 0:00:32]} 32. Re1 {[%clk 0:00:42]}  Re5 {[%clk 0:00:17]} 33. Bxe2 {[%clk 0:00:30]}  Rxe2 {[%clk 0:00:18]} 34. Qb8+ {[%clk 0:00:31]}  Kh7 {[%clk 0:00:18]} 35. Rxe2 {[%clk 0:00:31]}  Qxe2 {[%clk 0:00:19]} 36. Qxa7 {[%clk 0:00:31]}  Qe5+ {[%clk 0:00:11]} 37. Kh1 {[%clk 0:00:30]}  Qa1+ {[%clk 0:00:06]} 38. Kh2 {[%clk 0:00:28]}  Qe5+ {[%clk 0:00:07]} 39. Kg1 {[%clk 0:00:18]}  Qe1+ {[%clk 0:00:07]} 40. Kh2 {[%clk 0:00:18]}  Qxb4 {[%clk 0:00:07]} 41. Kh1 {[%clk 0:00:18]}  Qb1+ {[%clk 0:00:04]} 42. Kh2 {[%clk 0:00:17]}  Qxc2 {[%clk 0:00:05]} 43. a5 {[%clk 0:00:13]}  Qa4 {[%clk 0:00:05]} 44. Qc7 {[%clk 0:00:12]}  d4 {[%clk 0:00:04]} 45. Qf7 {[%clk 0:00:09]}  Qb4 {[%clk 0:00:01]} 46. Qg6+ {[%clk 0:00:06]}  Kg8 {[%clk 0:00:01]} 47. Qe8+ {[%clk 0:00:07]}  Kh7 {[%clk 0:00:02]} 48. Qg6+ {[%clk 0:00:07]}  Kg8 {[%clk 0:00:02]} 49. Qe8+ {[%clk 0:00:08]}  Kh7 {[%clk 0:00:03]} 50. a6 {[%clk 0:00:08]}  Qd6+ {[%clk 0:00:03]} 51. Kh1 {[%clk 0:00:07]}  Qa3 {[%clk 0:00:02]} 52. Qg6+ {[%clk 0:00:05]}  Kg8 {[%clk 0:00:02]} 53. Qe8+ {[%clk 0:00:06]}  Kh7 {[%clk 0:00:03]} 54. Qxc6 {[%clk 0:00:07]}  d3 {[%clk 0:00:02]} 55. Qe8 {[%clk 0:00:05]}  Qc1+ {[%clk 0:00:02]} 56. Kh2 {[%clk 0:00:03]}  Qf4+ {[%clk 0:00:03]} 57. Kg1 {[%clk 0:00:02]}  Qxf5 {[%clk 0:00:04]} 58. Qe3 {[%clk 0:00:03]}  Qb5 {[%clk 0:00:02]} 59. a7 {[%clk 0:00:02]}  Qb1+ {[%clk 0:00:02]} 60. Kh2 {[%clk 0:00:03]}  Qb7 {[%clk 0:00:01]} 61. Qxd3+ {[%clk 0:00:03]}  g6 {[%clk 0:00:01]} 62. Qa3 {[%clk 0:00:02]}  Qc7+ {[%clk 0:00:02]} 63. Kg1 {[%clk 0:00:02]}  Qb6+ {[%clk 0:00:02]} 64. Kh2 {[%clk 0:00:03]}  Qc7+ {[%clk 0:00:02]} 65. Kh1 {[%clk 0:00:04]}  Qf4 {[%clk 0:00:01]} 66. a8=Q {[%clk 0:00:04]}  Qf1+ {[%clk 0:00:00]} 67. Kh2 {[%clk 0:00:05]} 1-0


[Site "https://www.chess.com"]

[Event "Titled Tuesday Blitz May 16 Late 2023"]
[White "Remizov, Yaroslav"]
[Black "Antipov, Mikhail Al."]
[WhiteFideId "34134015"]
[BlackFideId "4107012"]
[WhiteElo "2400"]
[BlackElo "2513"]
[Result "1-0"]
[Round "09"]
[TimeControl "180+2"]
[Date "2023.05.16"]
[WhiteClock "0:00:06"]
[BlackClock "0:00:02"]

1. e4 {[%clk 0:03:00]}  c5 {[%clk 0:02:58]} 2. Nf3 {[%clk 0:02:59]}  e6 {[%clk 0:02:54]} 3. d4 {[%clk 0:02:56]}  cxd4 {[%clk 0:02:55]} 4. Nxd4 {[%clk 0:02:57]}  a6 {[%clk 0:02:56]} 5. Qf3 {[%clk 0:02:54]}  d6 {[%clk 0:02:48]} 6. Nc3 {[%clk 0:02:49]}  Nf6 {[%clk 0:02:48]} 7. Bg5 {[%clk 0:02:47]}  Nbd7 {[%clk 0:02:48]} 8. O-O-O {[%clk 0:02:45]}  Qc7 {[%clk 0:02:46]} 9. a4 {[%clk 0:02:35]}  Be7 {[%clk 0:02:39]} 10. g4 {[%clk 0:02:21]}  b5 {[%clk 0:02:18]} 11. axb5 {[%clk 0:02:15]}  axb5 {[%clk 0:02:19]} 12. Bxb5 {[%clk 0:02:02]}  Bb7 {[%clk 0:02:03]} 13. Bxf6 {[%clk 0:01:30]}  Bxf6 {[%clk 0:02:00]} 14. Qe3 {[%clk 0:01:24]}  O-O {[%clk 0:01:53]} 15. g5 {[%clk 0:01:21]}  Be7 {[%clk 0:01:54]} 16. h4 {[%clk 0:01:18]}  Nc5 {[%clk 0:01:38]} 17. h5 {[%clk 0:01:09]}  Rfc8 {[%clk 0:01:03]} 18. g6 {[%clk 0:00:56]}  Bf6 {[%clk 0:00:56]} 19. Kd2 {[%clk 0:00:46]}  Qa5 {[%clk 0:00:46]} 20. gxf7+ {[%clk 0:00:35]}  Kxf7 {[%clk 0:00:46]} 21. Ke2 {[%clk 0:00:35]}  Qb4 {[%clk 0:00:45]} 22. Rh3 {[%clk 0:00:23]}  Qxb2 {[%clk 0:00:37]} 23. Rb1 {[%clk 0:00:23]}  Qa3 {[%clk 0:00:32]} 24. Rf3 {[%clk 0:00:13]}  h6 {[%clk 0:00:20]} 25. Rg1 {[%clk 0:00:10]}  Rf8 {[%clk 0:00:08]} 26. Rxf6+ {[%clk 0:00:06]}  Kxf6 {[%clk 0:00:02]} 27. Qf4+ {[%clk 0:00:06]} 1-0


[Site "https://www.chess.com"]

[Event "Titled Tuesday Blitz May 16 Late 2023"]
[White "Baskakov, Egor"]
[Black "Mirimanian, Hayk"]
[WhiteFideId "24197866"]
[BlackFideId "4700180"]
[WhiteElo "2225"]
[BlackElo "2280"]
[Result "0-1"]
[Round "09"]
[TimeControl "180+2"]
[Date "2023.05.16"]
[WhiteClock "0:00:38"]
[BlackClock "0:00:11"]

1. e4 {[%clk 0:03:00]}  c5 {[%clk 0:02:48]} 2. Nf3 {[%clk 0:02:59]}  d6 {[%clk 0:02:46]} 3. d4 {[%clk 0:03:00]}  cxd4 {[%clk 0:02:47]} 4. Nxd4 {[%clk 0:03:00]}  Nf6 {[%clk 0:02:48]} 5. Nc3 {[%clk 0:03:00]}  a6 {[%clk 0:02:47]} 6. a4 {[%clk 0:03:01]}  e5 {[%clk 0:02:36]} 7. Nde2 {[%clk 0:03:01]}  Be6 {[%clk 0:02:33]} 8. g3 {[%clk 0:03:00]}  Nbd7 {[%clk 0:02:27]} 9. Bg2 {[%clk 0:02:57]}  h5 {[%clk 0:02:25]} 10. h3 {[%clk 0:02:57]}  Be7 {[%clk 0:02:20]} 11. a5 {[%clk 0:02:57]}  O-O {[%clk 0:02:12]} 12. Be3 {[%clk 0:02:57]}  Rc8 {[%clk 0:02:10]} 13. O-O {[%clk 0:02:56]}  Nc5 {[%clk 0:02:06]} 14. b3 {[%clk 0:02:46]}  Bd7 {[%clk 0:02:02]} 15. Nd5 {[%clk 0:02:26]}  Ncxe4 {[%clk 0:01:54]} 16. Bb6 {[%clk 0:02:25]}  Qe8 {[%clk 0:01:47]} 17. Nc7 {[%clk 0:02:18]}  Rxc7 {[%clk 0:01:45]} 18. Bxc7 {[%clk 0:02:19]}  Qc8 {[%clk 0:01:45]} 19. Bb6 {[%clk 0:02:16]}  Bxh3 {[%clk 0:01:45]} 20. f3 {[%clk 0:02:11]}  Ng5 {[%clk 0:01:42]} 21. c4 {[%clk 0:01:53]}  Bxg2 {[%clk 0:01:38]} 22. Kxg2 {[%clk 0:01:54]}  Qh3+ {[%clk 0:01:38]} 23. Kf2 {[%clk 0:01:54]}  h4 {[%clk 0:01:30]} 24. Rh1 {[%clk 0:01:49]}  Qf5 {[%clk 0:01:19]} 25. Ng1 {[%clk 0:01:28]}  Nfe4+ {[%clk 0:01:06]} 26. Kg2 {[%clk 0:01:23]}  Nxg3 {[%clk 0:00:36]} 27. Rh2 {[%clk 0:01:23]}  Ne6 {[%clk 0:00:33]} 28. Be3 {[%clk 0:01:21]}  Bg5 {[%clk 0:00:32]} 29. Qd2 {[%clk 0:01:16]}  Bxe3 {[%clk 0:00:31]} 30. Qxe3 {[%clk 0:01:17]}  Nf4+ {[%clk 0:00:32]} 31. Kf2 {[%clk 0:01:17]}  g5 {[%clk 0:00:30]} 32. Rd1 {[%clk 0:01:12]}  d5 {[%clk 0:00:30]} 33. cxd5 {[%clk 0:01:12]}  Rc8 {[%clk 0:00:30]} 34. Rd2 {[%clk 0:01:11]}  Rc1 {[%clk 0:00:29]} 35. Qb6 {[%clk 0:00:53]}  Rf1+ {[%clk 0:00:19]} 36. Ke3 {[%clk 0:00:53]}  Rxg1 {[%clk 0:00:13]} 37. d6 {[%clk 0:00:53]}  Re1+ {[%clk 0:00:13]} 38. Kf2 {[%clk 0:00:49]}  Rf1+ {[%clk 0:00:14]} 39. Ke3 {[%clk 0:00:49]}  e4 {[%clk 0:00:13]} 40. Rhf2 {[%clk 0:00:41]}  Nd5+ {[%clk 0:00:11]} 41. Rxd5 {[%clk 0:00:41]}  Qxd5 {[%clk 0:00:12]} 42. Rxf1 {[%clk 0:00:37]}  Qd3+ {[%clk 0:00:12]} 43. Kf2 {[%clk 0:00:36]}  Qxf1+ {[%clk 0:00:13]} 44. Ke3 {[%clk 0:00:37]}  Qxf3+ {[%clk 0:00:13]} 45. Kd2 {[%clk 0:00:38]}  Qd3+ {[%clk 0:00:10]} 46. Kc1 {[%clk 0:00:38]}  Ne2+ {[%clk 0:00:10]} 47. Kb2 {[%clk 0:00:37]}  Qd4+ {[%clk 0:00:10]} 48. Ka3 {[%clk 0:00:37]}  Qxb6 {[%clk 0:00:09]} 49. axb6 {[%clk 0:00:38]}  Nd4 {[%clk 0:00:10]} 50. d7 {[%clk 0:00:38]}  Ne6 {[%clk 0:00:11]} 0-1


[Site "https://www.chess.com"]

[Event "Titled Tuesday Blitz May 16 Late 2023"]
[White "koncheto"]
[Black "Mekhitarian, Krikor Sevag"]
[BlackFideId "2107660"]
[WhiteElo "2590"]
[BlackElo "2604"]
[Result "1/2-1/2"]
[Round "09"]
[TimeControl "180+2"]
[Date "2023.05.16"]
[WhiteClock "0:00:08"]
[BlackClock "0:00:10"]

1. e4 {[%clk 0:03:00]}  e6 {[%clk 0:02:59]} 2. d4 {[%clk 0:03:00]}  d5 {[%clk 0:02:59]} 3. Nd2 {[%clk 0:03:01]}  c5 {[%clk 0:02:58]} 4. Ngf3 {[%clk 0:02:59]}  cxd4 {[%clk 0:02:58]} 5. Nxd4 {[%clk 0:02:59]}  Nf6 {[%clk 0:02:59]} 6. Bd3 {[%clk 0:02:49]}  e5 {[%clk 0:02:51]} 7. N4f3 {[%clk 0:02:37]}  dxe4 {[%clk 0:02:49]} 8. Nxe4 {[%clk 0:02:36]}  Nxe4 {[%clk 0:02:49]} 9. Bxe4 {[%clk 0:02:37]}  Qxd1+ {[%clk 0:02:49]} 10. Kxd1 {[%clk 0:02:38]}  Nd7 {[%clk 0:02:24]} 11. c3 {[%clk 0:02:25]}  Nc5 {[%clk 0:02:08]} 12. Bc2 {[%clk 0:02:09]}  f6 {[%clk 0:01:37]} 13. Be3 {[%clk 0:01:28]}  Be6 {[%clk 0:01:37]} 14. b3 {[%clk 0:01:15]}  O-O-O+ {[%clk 0:01:23]} 15. Ke2 {[%clk 0:01:15]}  Be7 {[%clk 0:01:11]} 16. Rad1 {[%clk 0:01:14]}  g6 {[%clk 0:01:11]} 17. h3 {[%clk 0:01:08]}  Bd5 {[%clk 0:00:57]} 18. g4 {[%clk 0:00:47]}  Ne4 {[%clk 0:00:50]} 19. Bxe4 {[%clk 0:00:47]}  Bxe4 {[%clk 0:00:50]} 20. Bxa7 {[%clk 0:00:48]}  Kc7 {[%clk 0:00:36]} 21. Be3 {[%clk 0:00:46]}  b5 {[%clk 0:00:33]} 22. Rhe1 {[%clk 0:00:42]}  Ra8 {[%clk 0:00:29]} 23. Rd2 {[%clk 0:00:41]}  Rhd8 {[%clk 0:00:30]} 24. Red1 {[%clk 0:00:40]}  Rxd2+ {[%clk 0:00:24]} 25. Rxd2 {[%clk 0:00:40]}  Kc6 {[%clk 0:00:23]} 26. Ne1 {[%clk 0:00:33]}  Bd5 {[%clk 0:00:19]} 27. Nd3 {[%clk 0:00:32]}  Bd6 {[%clk 0:00:17]} 28. Nb4+ {[%clk 0:00:22]}  Bxb4 {[%clk 0:00:16]} 29. cxb4 {[%clk 0:00:23]}  Be4 {[%clk 0:00:15]} 30. Bc5 {[%clk 0:00:19]}  Bd5 {[%clk 0:00:11]} 31. Ke3 {[%clk 0:00:18]}  g5 {[%clk 0:00:09]} 32. f3 {[%clk 0:00:17]}  Re8 {[%clk 0:00:07]} 33. Rh2 {[%clk 0:00:16]}  Bf7 {[%clk 0:00:05]} 34. h4 {[%clk 0:00:16]}  gxh4 {[%clk 0:00:04]} 35. Rxh4 {[%clk 0:00:16]}  Bg6 {[%clk 0:00:05]} 36. Rh2 {[%clk 0:00:15]}  Rd8 {[%clk 0:00:05]} 37. Rd2 {[%clk 0:00:13]}  Rxd2 {[%clk 0:00:05]} 38. Kxd2 {[%clk 0:00:14]}  Kd5 {[%clk 0:00:05]} 39. a4 {[%clk 0:00:13]}  Be8 {[%clk 0:00:04]} 40. a5 {[%clk 0:00:13]}  Bd7 {[%clk 0:00:04]} 41. Ke3 {[%clk 0:00:13]}  Bc8 {[%clk 0:00:04]} 42. Kd3 {[%clk 0:00:09]}  Bb7 {[%clk 0:00:03]} 43. Ke3 {[%clk 0:00:08]}  Ke6 {[%clk 0:00:03]} 44. f4 {[%clk 0:00:06]}  exf4+ {[%clk 0:00:03]} 45. Kxf4 {[%clk 0:00:06]}  Bc8 {[%clk 0:00:04]} 46. Bd4 {[%clk 0:00:05]}  Bb7 {[%clk 0:00:04]} 47. g5 {[%clk 0:00:03]}  fxg5+ {[%clk 0:00:04]} 48. Kxg5 {[%clk 0:00:04]}  Kd7 {[%clk 0:00:04]} 49. Kh6 {[%clk 0:00:04]}  Kc8 {[%clk 0:00:04]} 50. Kxh7 {[%clk 0:00:04]}  Bc6 {[%clk 0:00:04]} 51. Kg7 {[%clk 0:00:04]}  Kb7 {[%clk 0:00:05]} 52. Kf6 {[%clk 0:00:04]}  Ka6 {[%clk 0:00:05]} 53. Ke7 {[%clk 0:00:04]}  Bf3 {[%clk 0:00:06]} 54. Kd6 {[%clk 0:00:04]}  Bd1 {[%clk 0:00:06]} 55. Kc5 {[%clk 0:00:05]}  Bxb3 {[%clk 0:00:07]} 56. Bc3 {[%clk 0:00:05]}  Bc4 {[%clk 0:00:08]} 57. Bd4 {[%clk 0:00:06]}  Bb3 {[%clk 0:00:08]} 58. Bc3 {[%clk 0:00:07]}  Bc4 {[%clk 0:00:09]} 59. Bd4 {[%clk 0:00:08]}  Bb3 {[%clk 0:00:10]} 1/2-1/2


[Site "https://www.chess.com"]

[Event "Titled Tuesday Blitz May 16 Late 2023"]
[White "Perske, Thore"]
[Black "Rastbod, Ali"]
[WhiteFideId "12902195"]
[BlackFideId "12567477"]
[WhiteElo "2336"]
[BlackElo "2274"]
[Result "0-1"]
[Round "09"]
[TimeControl "180+2"]
[Date "2023.05.16"]
[WhiteClock "0:00:00"]
[BlackClock "0:00:09"]

1. d4 {[%clk 0:02:59]}  d6 {[%clk 0:02:55]} 2. g3 {[%clk 0:02:59]}  e5 {[%clk 0:02:55]} 3. Bg2 {[%clk 0:02:54]}  Nf6 {[%clk 0:02:30]} 4. e4 {[%clk 0:02:47]}  Be7 {[%clk 0:02:26]} 5. Ne2 {[%clk 0:02:47]}  O-O {[%clk 0:02:26]} 6. O-O {[%clk 0:02:47]}  Re8 {[%clk 0:02:25]} 7. Re1 {[%clk 0:02:45]}  c6 {[%clk 0:02:25]} 8. a4 {[%clk 0:02:45]}  a5 {[%clk 0:02:25]} 9. Nbc3 {[%clk 0:02:45]}  Na6 {[%clk 0:02:25]} 10. h3 {[%clk 0:02:45]}  Be6 {[%clk 0:02:25]} 11. Be3 {[%clk 0:02:43]}  Nb4 {[%clk 0:02:24]} 12. Qd2 {[%clk 0:02:41]}  Bc4 {[%clk 0:02:24]} 13. Rad1 {[%clk 0:02:30]}  Qc7 {[%clk 0:02:23]} 14. g4 {[%clk 0:02:23]}  g6 {[%clk 0:02:19]} 15. Ng3 {[%clk 0:02:22]}  Rad8 {[%clk 0:02:18]} 16. f4 {[%clk 0:02:14]}  Nd7 {[%clk 0:01:54]} 17. b3 {[%clk 0:02:04]}  Ba6 {[%clk 0:01:52]} 18. Kh2 {[%clk 0:01:47]}  Bh4 {[%clk 0:01:46]} 19. Rg1 {[%clk 0:01:01]}  b6 {[%clk 0:01:36]} 20. Nce2 {[%clk 0:00:55]}  Nf8 {[%clk 0:01:21]} 21. f5 {[%clk 0:00:51]}  exd4 {[%clk 0:01:20]} 22. Nxd4 {[%clk 0:00:46]}  c5 {[%clk 0:01:01]} 23. Nde2 {[%clk 0:00:23]}  Bf6 {[%clk 0:00:49]} 24. c4 {[%clk 0:00:21]}  Be5 {[%clk 0:00:43]} 25. Bf4 {[%clk 0:00:20]}  Bb7 {[%clk 0:00:42]} 26. Rgf1 {[%clk 0:00:19]}  Nc6 {[%clk 0:00:38]} 27. Nc3 {[%clk 0:00:19]}  Nd4 {[%clk 0:00:39]} 28. Nb5 {[%clk 0:00:16]}  Qb8 {[%clk 0:00:36]} 29. Nxd4 {[%clk 0:00:14]}  cxd4 {[%clk 0:00:36]} 30. Rf2 {[%clk 0:00:09]}  Nd7 {[%clk 0:00:34]} 31. Rdf1 {[%clk 0:00:09]}  Nc5 {[%clk 0:00:34]} 32. Bxe5 {[%clk 0:00:06]}  dxe5 {[%clk 0:00:34]} 33. fxg6 {[%clk 0:00:06]}  fxg6 {[%clk 0:00:33]} 34. Rf7 {[%clk 0:00:05]}  Rd7 {[%clk 0:00:33]} 35. R7f6 {[%clk 0:00:03]}  Rg7 {[%clk 0:00:22]} 36. Rxb6 {[%clk 0:00:02]}  Qc7 {[%clk 0:00:21]} 37. Qxa5 {[%clk 0:00:02]}  Nxb3 {[%clk 0:00:20]} 38. Qb4 {[%clk 0:00:02]}  Nc5 {[%clk 0:00:19]} 39. Rb5 {[%clk 0:00:02]}  Rc8 {[%clk 0:00:17]} 40. a5 {[%clk 0:00:02]}  Ba6 {[%clk 0:00:17]} 41. Rb6 {[%clk 0:00:02]}  Nd3 {[%clk 0:00:14]} 42. Qd6 {[%clk 0:00:03]}  Bxc4 {[%clk 0:00:14]} 43. Qxc7 {[%clk 0:00:03]}  Rgxc7 {[%clk 0:00:15]} 44. Rff6 {[%clk 0:00:02]}  Nf4 {[%clk 0:00:14]} 45. a6 {[%clk 0:00:02]}  Ra7 {[%clk 0:00:13]} 46. Rfd6 {[%clk 0:00:03]}  Rca8 {[%clk 0:00:13]} 47. Bf1 {[%clk 0:00:03]}  Bxf1 {[%clk 0:00:09]} 48. Nxf1 {[%clk 0:00:04]}  Ne2 {[%clk 0:00:06]} 49. Nd2 {[%clk 0:00:05]}  Nc3 {[%clk 0:00:06]} 50. Nc4 {[%clk 0:00:05]}  Nxe4 {[%clk 0:00:07]} 51. Nxe5 {[%clk 0:00:05]}  Nxd6 {[%clk 0:00:07]} 52. Rxd6 {[%clk 0:00:06]}  Rxa6 {[%clk 0:00:08]} 53. Rxd4 {[%clk 0:00:07]}  Re6 {[%clk 0:00:07]} 54. Nf3 {[%clk 0:00:07]}  Ra3 {[%clk 0:00:08]} 55. Rf4 {[%clk 0:00:04]}  Re2+ {[%clk 0:00:07]} 56. Kg3 {[%clk 0:00:05]}  Re1 {[%clk 0:00:08]} 57. g5 {[%clk 0:00:05]}  Rg1+ {[%clk 0:00:07]} 58. Kf2 {[%clk 0:00:05]}  Rh1 {[%clk 0:00:08]} 59. h4 {[%clk 0:00:05]}  Kg7 {[%clk 0:00:07]} 60. Kg2 {[%clk 0:00:06]}  Rb1 {[%clk 0:00:06]} 61. Kg3 {[%clk 0:00:06]}  Rbb3 {[%clk 0:00:06]} 62. Kg2 {[%clk 0:00:06]}  Rb7 {[%clk 0:00:07]} 63. Kg3 {[%clk 0:00:06]}  Rf7 {[%clk 0:00:07]} 64. Kg4 {[%clk 0:00:07]}  Rxf4+ {[%clk 0:00:06]} 65. Kxf4 {[%clk 0:00:08]}  Kf7 {[%clk 0:00:07]} 66. Ne5+ {[%clk 0:00:08]}  Ke6 {[%clk 0:00:07]} 67. Ng4 {[%clk 0:00:08]}  Ra4+ {[%clk 0:00:08]} 68. Kg3 {[%clk 0:00:09]}  Kf5 {[%clk 0:00:06]} 69. Nh6+ {[%clk 0:00:09]}  Ke5 {[%clk 0:00:06]} 70. Nf7+ {[%clk 0:00:09]}  Ke4 {[%clk 0:00:06]} 71. Nh6 {[%clk 0:00:09]}  Ra3+ {[%clk 0:00:06]} 72. Kg4 {[%clk 0:00:10]}  Ra1 {[%clk 0:00:06]} 73. Ng8 {[%clk 0:00:10]}  Rg1+ {[%clk 0:00:07]} 74. Kh3 {[%clk 0:00:11]}  Kf3 {[%clk 0:00:07]} 75. Kh2 {[%clk 0:00:11]}  Rg2+ {[%clk 0:00:08]} 76. Kh3 {[%clk 0:00:11]}  Rg3+ {[%clk 0:00:08]} 77. Kh2 {[%clk 0:00:11]}  Rg4 {[%clk 0:00:09]} 78. Kh3 {[%clk 0:00:11]}  Rf4 {[%clk 0:00:09]} 79. Nf6 {[%clk 0:00:11]}  h5 {[%clk 0:00:10]} 80. Ng8 {[%clk 0:00:08]}  Ra4 {[%clk 0:00:10]} 81. Ne7 {[%clk 0:00:08]}  Ra6 {[%clk 0:00:10]} 82. Nd5 {[%clk 0:00:09]}  Kf2 {[%clk 0:00:10]} 83. Nf4 {[%clk 0:00:09]}  Ke3 {[%clk 0:00:08]} 84. Nd5+ {[%clk 0:00:09]}  Kf3 {[%clk 0:00:09]} 85. Ne7 {[%clk 0:00:08]}  Ke4 {[%clk 0:00:09]} 86. Kg3 {[%clk 0:00:07]}  Ke5 {[%clk 0:00:07]} 87. Kf3 {[%clk 0:00:05]}  Re6 {[%clk 0:00:07]} 88. Ng8 {[%clk 0:00:04]}  Kf5 {[%clk 0:00:05]} 89. Nh6+ {[%clk 0:00:04]}  Ke5 {[%clk 0:00:05]} 90. Nf7+ {[%clk 0:00:05]}  Kd5 {[%clk 0:00:06]} 91. Nh6 {[%clk 0:00:04]}  Ra6 {[%clk 0:00:06]} 92. Ng8 {[%clk 0:00:04]}  Ra4 {[%clk 0:00:05]} 93. Kg3 {[%clk 0:00:05]}  Ke5 {[%clk 0:00:06]} 94. Ne7 {[%clk 0:00:04]}  Ra6 {[%clk 0:00:05]} 95. Kf3 {[%clk 0:00:05]}  Kd4 {[%clk 0:00:03]} 96. Kf4 {[%clk 0:00:04]}  Re6 {[%clk 0:00:04]} 97. Ng8 {[%clk 0:00:05]}  Re4+ {[%clk 0:00:04]} 98. Kg3 {[%clk 0:00:05]}  Rg4+ {[%clk 0:00:04]} 99. Kh3 {[%clk 0:00:06]}  Re4 {[%clk 0:00:04]} 100. Kg3 {[%clk 0:00:05]}  Ke5 {[%clk 0:00:03]} 101. Ne7 {[%clk 0:00:05]}  Rg4+ {[%clk 0:00:04]} 102. Kh3 {[%clk 0:00:05]}  Kf4 {[%clk 0:00:04]} 103. Nxg6+ {[%clk 0:00:05]}  Ke4 {[%clk 0:00:05]} 104. Ne7 {[%clk 0:00:04]}  Kf3 {[%clk 0:00:05]} 105. Nf5 {[%clk 0:00:03]}  Kf4 {[%clk 0:00:06]} 106. Ng7 {[%clk 0:00:03]}  Rg3+ {[%clk 0:00:06]} 107. Kh2 {[%clk 0:00:04]}  Kg4 {[%clk 0:00:07]} 108. g6 {[%clk 0:00:02]}  Rh3+ {[%clk 0:00:05]} 109. Kg2 {[%clk 0:00:02]}  Rxh4 {[%clk 0:00:05]} 110. Ne6 {[%clk 0:00:03]}  Rh3 {[%clk 0:00:04]} 111. g7 {[%clk 0:00:02]}  Rg3+ {[%clk 0:00:04]} 112. Kf2 {[%clk 0:00:03]}  Kh3 {[%clk 0:00:04]} 113. Nf4+ {[%clk 0:00:03]}  Kh2 {[%clk 0:00:05]} 114. Nxh5 {[%clk 0:00:03]}  Rg5 {[%clk 0:00:05]} 115. Kf3 {[%clk 0:00:03]}  Kh3 {[%clk 0:00:04]} 116. Kf4 {[%clk 0:00:04]}  Kh4 {[%clk 0:00:05]} 117. g8=Q {[%clk 0:00:01]}  Rxg8 {[%clk 0:00:04]} 118. Nf6 {[%clk 0:00:02]}  Rg1 {[%clk 0:00:04]} 119. Kf5 {[%clk 0:00:03]}  Rf1+ {[%clk 0:00:05]} 120. Ke5 {[%clk 0:00:03]}  Kg5 {[%clk 0:00:05]} 121. Ne4+ {[%clk 0:00:04]}  Kg6 {[%clk 0:00:06]} 122. Nd6 {[%clk 0:00:04]}  Re1+ {[%clk 0:00:06]} 123. Ne4 {[%clk 0:00:05]}  Kh5 {[%clk 0:00:06]} 124. Kf5 {[%clk 0:00:06]}  Kh4 {[%clk 0:00:06]} 125. Kf4 {[%clk 0:00:06]}  Rf1+ {[%clk 0:00:07]} 126. Ke3 {[%clk 0:00:06]}  Rf8 {[%clk 0:00:08]} 127. Nc5 {[%clk 0:00:04]}  Kg3 {[%clk 0:00:08]} 128. Ne4+ {[%clk 0:00:04]}  Kg4 {[%clk 0:00:08]} 129. Kd4 {[%clk 0:00:03]}  Kf4 {[%clk 0:00:08]} 130. Nc5 {[%clk 0:00:03]}  Rd8+ {[%clk 0:00:09]} 131. Kc4 {[%clk 0:00:00]}  Ke3 {[%clk 0:00:09]} 0-1


[Site "https://www.chess.com"]